[Event "II Llinars Open 2022"]
[Site "Llinars del Valles"]
[Date "2022.06.27"]
[Round "3.2"]
[White "Garcia Ramos, Daniel"]
[Black "Garre Montes, Marc"]
[Result "1-0"]
[ECO "B76"]
[WhiteElo "2441"]
[BlackElo "1887"]
[Annotator "TA"]
[PlyCount "63"]
[EventDate "2022.06.24"]
[EventType "swiss"]
[EventCountry "ESP"]
[SourceTitle "playchess.com"]
[Source "ChessBase"]
[SourceQuality "1"]
[TimeControl "5400+30"]

{[%evp 25,63,41,51,-28,65,-24,47,40,107,102,163,273,270,272,230,269,293,297,260,260,387,242,305,306,365,343,395,377,439,433,448,396,596,562,595,579,1430,1377,983,691]} 1. e4 {[%emt 0:00:52]} c5 {[%emt 0:00:12]} 2. Nf3 {[%emt 0:00:13]} d6 {[%emt 0:00:10]} 3. d4 {[%emt 0:00:06]} cxd4 {[%emt 0:00:11]} 4. Nxd4 {[%emt 0:00:13]} Nf6 {[%emt 0:00:21]} 5. Nc3 {[%emt 0:00:07]} g6 {[%emt 0:00:21]} 6. Be3 {[%emt 0:00:10]} Bg7 {[%emt 0:00:45]} 7. f3 {[%emt 0:00:05]} O-O {[%emt 0:00:11]} 8. Qd2 {[%emt 0:00:06]} Nc6 {[%emt 0:00:57]} 9. O-O-O {[%emt 0:00:27]} Nxd4 {[%emt 0:01:19]} 10. Bxd4 {[%emt 0:00:08]} Be6 {[%emt 0:00:12]} 11. Nd5 {[%emt 0:09:26]} Bxd5 {[%emt 0:04:35]} 12. exd5 {[%emt 0:00:12]} Qc7 {[%emt 0:02:49]} 13. Kb1 {[%emt 0:08:19]} Rfc8 {[%emt 0:04:00]} 14. a3 {[%emt 0:01:02] [#] B76: Sicilian Dragon: Yugoslav Attack, 9 g4 and 9 0-0-0.} (14. Rc1 $14) 14... a6 $146 {[%emt 0:08:09]} (14... Bh6 $1 $11 15. Qd3 (15. Qe2 Nxd5) 15... Nxd5) ({Predecessor:} 14... b5 15. Bxb5 Rab8 16. Bc6 Nxd5 17. Bxd5 e5 18. Be3 e4 19. Bb3 d5 20. Bd4 Bf8 21. fxe4 a5 {1-0 (34) Maksimovic,B (2398)-Mahitosh,D (2254) Chess.com INT 2020}) 15. g4 {[%emt 0:04:02] [#] White is more active.} (15. h4 $14) 15... b5 {[%emt 0:05:08]} (15... Bh6 $1 $11 16. Qc3 (16. Qf2 Nxd5) 16... Nxd5 17. Qxc7 Rxc7) 16. h4 $14 {[%emt 0:01:58] h5 is the strong threat. White is slightly better.} Rab8 {[%emt 0:07:58] [#]} ({Better is} 16... Qb7 $14) 17. h5 $1 $16 {[%emt 0:12:36]} a5 {[%emt 0:10:31]} (17... b4 $16) 18. hxg6 $18 {[%emt 0:02:21]} hxg6 {[%emt 0:05:06]} 19. g5 {[%emt 0:17:28]} Nh5 {[%emt 0:07:52] And now ...Bxd4 would win.} 20. Bxg7 {[%emt 0:12:16]} Nxg7 {[%emt 0:06:39]} 21. Bh3 {[%emt 0:01:12]} (21. Qh2 Nh5 $16) 21... b4 {[%emt 0:06:01][%cal Ob4a3]} 22. Bxc8 {[%emt 0:11:01]} bxa3 {[%emt 0:02:10] [#]} (22... Qxc8 $142 23. Qd3 (23. Qh2 Nh5 $16) 23... bxa3) 23. b3 $1 {[%emt 0:06:19]} Rxc8 {[%emt 0:03:36]} (23... Qxc8 24. Qxa5) 24. Rh4 {[%emt 0:00:30][%cal Bh1h4,Bh4c4,Bc4c7][%mdl 32]} ({Weaker is} 24. Qh2 Nh5 25. Qd2 a4 $16) 24... Rb8 {[%emt 0:06:44]} 25. Ka2 {[%emt 0:01:11][%cal Bb1a2,Ba2a3,Ba3a2][%mdl 32]} Qc5 {[%emt 0:03:59]} 26. Rc4 {[%emt 0:00:33]} Qb6 {[%emt 0:03:38]} 27. Qc3 {[%emt 0:00:20] Hoping for Rc8+.} Qd8 {[%emt 0:02:52] Against Rc8} 28. Kxa3 {[%emt 0:00:44]} Nh5 {[%emt 0:00:53]} (28... Qd7 {was necessary.} 29. Re1 Rf8) 29. Rdd4 {[%emt 0:01:40] White is clearly winning.} Qf8 {[%emt 0:01:19]} 30. Rc7 {[%emt 0:00:36]} e5 {[%emt 0:02:46]} 31. dxe6 {[%emt 0:01:09]} fxe6 {[%emt 0:00:11]} 32. Ka2 {[%emt 0:00:25] White took control after the opening.  Weighted Error Value: White=0.26 (precise) /Black=0.62} 1-0

[Event "II Llinars Open 2022"]
[Site "Llinars del Valles"]
[Date "2022.06.27"]
[Round "3.3"]
[White "Comellas Blanchart, Jordi"]
[Black "Ayats Llobera, Gerard"]
[Result "0-1"]
[ECO "A74"]
[WhiteElo "1962"]
[BlackElo "2423"]
[Annotator "TA"]
[PlyCount "54"]
[EventDate "2022.06.24"]
[EventType "swiss"]
[EventCountry "ESP"]
[SourceTitle "playchess.com"]
[Source "ChessBase"]
[SourceQuality "1"]
[TimeControl "5400+30"]

{[%evp 20,54,36,46,69,62,70,73,74,75,81,71,103,77,102,108,115,63,62,59,56,50,97,63,118,89,89,-10,0,0,-1,0,32,20,50,-18,-5]} 1. d4 {[%emt 0:00:01]} Nf6 {[%emt 0:02:44]} 2. c4 {[%emt 0:00:07]} c5 {[%emt 0:00:04]} 3. d5 {[%emt 0:00:11]} e6 {[%emt 0:00:03]} 4. Nc3 {[%emt 0:00:12]} exd5 {[%emt 0:00:03]} 5. cxd5 {[%emt 0:00:08]} d6 {[%emt 0:00:03]} 6. Nf3 {[%emt 0:00:42][%cal Bg1f3,Bf3d2,Bd2c4][%mdl 32]} g6 {[%emt 0:00:04]} 7. Nd2 {[%emt 0:00:22]} Nbd7 {[%emt 0:02:22]} 8. e4 {[%emt 0:00:28]} Bg7 {[%emt 0:02:01]} 9. Be2 {[%emt 0:00:45]} O-O {[%emt 0:00:39]} 10. O-O {[%emt 0:00:10]} a6 {[%emt 0:08:35]} 11. a4 {[%emt 0:00:10]} Qc7 {[%emt 0:00:06] A74: Modern Benoni: Classical: 9...a6.} 12. Nc4 {[%emt 0:08:11]} Nb6 {[%emt 0:02:46]} 13. Ne3 {[%emt 0:05:02]} Re8 {[%emt 0:03:08] White is better.} 14. f3 {[%emt 0:04:19]} Bd7 {[%emt 0:05:04] [#]} 15. Bd2 $146 {[%emt 0:06:45]} ({Predecessor:} 15. Kh1 Rad8 16. a5 Nc8 17. Bd2 Na7 18. Qb3 Nh5 19. Nc4 Nb5 20. Nxb5 Bxb5 21. Bd3 {1-0 (48) Krstic,P (2324)-Simonyi,Z (2223) Novi Sad 2017}) 15... Rad8 {[%emt 0:01:37]} 16. Rb1 {[%emt 0:07:49]} Nc8 {[%emt 0:07:31]} 17. b4 {[%emt 0:03:08]} Nh5 {[%emt 0:08:09][%cal Bf6h5,Bh5f4,Bf4e2][%mdl 32]} 18. Qb3 {[%emt 0:09:13]} (18. Kh1 $16) 18... Nf4 $14 {[%emt 0:03:19] [#] ...Bxc3 is the strong threat.} 19. Rfe1 {[%emt 0:09:20]} Nxe2+ {[%emt 0:16:09]} ({Not} 19... Bd4 20. Kh1 $16) 20. Rxe2 {[%emt 0:01:47]} b6 {[%emt 0:04:18]} (20... f5 $14) 21. bxc5 {[%emt 0:06:17]} Qxc5 {[%emt 0:02:34]} ({Better is} 21... bxc5 $14 22. Kh1 Re7) 22. Rc1 {[%emt 0:04:43]} Qd4 {[%emt 0:00:29]} 23. Qc4 {[%emt 0:06:31]} (23. Kh1 $16) 23... b5 {[%emt 0:07:12]} 24. axb5 {[%emt 0:03:25]} axb5 {[%emt 0:00:24]} 25. Qb3 {[%emt 0:03:50]} Na7 {[%emt 0:05:06]} 26. Na2 {[%emt 0:11:07]} Rc8 {[%emt 0:01:08]} 27. Nb4 {[%emt 0:01:43]} (27. Bc3 $14 Qb6 28. Bxg7 Rxc1+ 29. Nxc1 Kxg7 30. g4) 27... f5 {[%emt 0:06:17][%mdl 32768] Weighted Error Value: White=0.24 (precise) /Black=0.17 (very precise) . Loss on time!?} 0-1

[Event "II Llinars Open 2022"]
[Site "Llinars del Valles"]
[Date "2022.06.27"]
[Round "3.4"]
[White "Valenzuela Gomez, Fernando"]
[Black "Gonzalez Cobos, Arnau"]
[Result "1-0"]
[ECO "B40"]
[WhiteElo "2373"]
[BlackElo "1941"]
[Annotator "TA"]
[PlyCount "113"]
[EventDate "2022.06.24"]
[EventType "swiss"]
[EventCountry "ESP"]
[SourceTitle "playchess.com"]
[Source "ChessBase"]
[SourceQuality "1"]
[TimeControl "5400+30"]

{[%evp 14,113,20,15,8,10,7,4,20,22,26,9,28,23,19,12,8,-20,-16,0,0,0,29,0,0,0,0,-8,0,-32,0,0,-4,-11,21,22,26,25,36,0,0,23,17,0,0,-69,8,15,14,26,26,8,8,8,135,127,129,115,295,267,385,381,329,338,358,282,358,193,366,362,629,326,473,452,438,415,555,517,586,387,586,584,585,574,572,566,532,472,469,467,532,514,877,877,859,861,805,788,753,731,491,455]} 1. e4 {[%emt 0:07:07]} c5 {[%emt 0:00:15]} 2. Nf3 {[%emt 0:00:11]} e6 {[%emt 0:00:22]} 3. d4 {[%emt 0:00:12]} cxd4 {[%emt 0:00:20]} 4. Nxd4 {[%emt 0:00:06]} Nf6 {[%emt 0:00:33]} 5. Bd3 {[%emt 0:00:39]} Nc6 {[%emt 0:02:31]} 6. Nxc6 {[%emt 0:00:14]} dxc6 {[%emt 0:01:27]} 7. O-O {[%emt 0:00:15]} e5 {[%emt 0:00:27]} 8. h3 {[%emt 0:01:02]} Bc5 {[%emt 0:01:35][%cal Og7g5] B40: Sicilian: 2...e6, Unusual lines.} 9. Nd2 {[%emt 0:00:57][%cal Bb1d2,Bd2c4,Bc4e3,Be3f5,Bf5d4][%mdl 32]} Be6 {[%emt 0:03:19]} 10. Qe2 {[%emt 0:01:06]} Qc7 {[%emt 0:02:22] [#] The position is equal.} 11. Bc4 $146 {[%emt 0:03:50]} ({Predecessor:} 11. Nb3 Bb6 12. Bd2 h6 13. Rfe1 g6 14. Bc4 Bxc4 15. Qxc4 O-O-O 16. a4 a5 17. Be3 Bxe3 {1-0 (17) Del Arco Gimeno,J (2097)-Gomez Enguita,F (1997) La Pobla de Vallbona 2004}) 11... Bxc4 {[%emt 0:03:22]} 12. Nxc4 {[%emt 0:00:11]} O-O {[%emt 0:01:05]} 13. Bg5 {[%emt 0:00:45]} Nd7 {[%emt 0:02:09][%cal Bf6d7,Bd7f8,Bf8g6][%mdl 32]} 14. Rad1 {[%emt 0:01:19] [#] Threatens to win with Qg4.} b5 {[%emt 0:09:25]} 15. Ne3 {[%emt 0:02:33] And now Qg4 would win.} f6 {[%emt 0:02:22]} 16. Bh4 {[%emt 0:02:47]} Rf7 {[%emt 0:01:45]} 17. Nf5 {[%emt 0:06:53]} Nf8 {[%emt 0:01:04]} 18. c4 {[%emt 0:07:04]} b4 {[%emt 0:03:23]} 19. Qg4 {[%emt 0:00:44]} Ng6 {[%emt 0:06:37]} 20. Bg3 {[%emt 0:03:09]} Kh8 {[%emt 0:06:34]} 21. Nd4 {[%emt 0:13:12]} Nf8 {[%emt 0:04:48]} 22. Nb3 {[%emt 0:00:16]} Qe7 {[%emt 0:01:32]} 23. Rd2 {[%emt 0:04:16]} Ne6 {[%emt 0:04:54]} 24. Nxc5 {[%emt 0:00:17]} Nxc5 {[%emt 0:00:04]} 25. Rfd1 {[%emt 0:02:24][%cal Bf1d1,Bd1d7,Bd7e7][%mdl 32]} Rff8 {[%emt 0:00:56]} 26. Rd7 {[%emt 0:07:14]} Nxd7 {[%emt 0:03:46]} 27. Rxd7 $40 {[%emt 0:00:03][%mdl 128] White has some attack.} f5 $1 {[%emt 0:00:19]} 28. Rxe7 {[%emt 0:00:09][%csl Ge7][%cal Rg4g7]} fxg4 {[%emt 0:00:05]} 29. Bxe5 $11 {[%emt 0:00:19][%mdl 4096] Endgame KRR-KRB} (29. hxg4 $11 Rfe8 30. Rc7) 29... Rg8 {[%emt 0:01:05]} ({Black should play} 29... Rfe8 $15 30. Bxg7+ Kg8) 30. hxg4 {[%emt 0:01:08] Black must now prevent f4.} Rge8 $1 {[%emt 0:05:21]} 31. Bxg7+ {[%emt 0:00:26]} Kg8 {[%emt 0:00:03]} 32. Rb7 {[%emt 0:01:12]} Rxe4 {[%emt 0:01:05]} 33. g5 {[%emt 0:01:21]} Rae8 {[%emt 0:09:21] [#]} (33... Rd8 $1 $11) 34. Bf6 $1 $16 {[%emt 0:00:47]} Rh4 {[%emt 0:01:32][%cal Re8e1]} 35. g3 {[%emt 0:00:54] White is more active.} Rh5 {[%emt 0:02:02] Loses the game.} (35... Rxc4 $16 36. Rg7+ (36. Rxa7 Rc2 $11) 36... Kf8) 36. Rxa7 $18 {[%emt 0:00:38]} h6 {[%emt 0:00:45]} (36... Re1+ $142 37. Kg2 Reh1 38. Rg7+ Kf8) 37. Rg7+ {[%emt 0:02:30]} Kf8 {[%emt 0:00:09]} 38. Rh7 {[%emt 0:01:02] g6 would kill now.} Re6 {[%emt 0:03:22]} 39. Kg2 {[%emt 0:00:48]} Kg8 {[%emt 0:00:45]} 40. Rh8+ {[%emt 0:00:13]} Kf7 {[%emt 0:00:09]} 41. f4 {[%emt 0:04:18]} Kg6 $2 {[%emt 0:04:07]} (41... Re3 42. Be5 Rxe5) 42. Kf3 {[%emt 0:07:13][%cal Of4f5] Strongly threatening f5+!} Rh2 {[%emt 0:01:18]} (42... hxg5 $142 43. Rxh5 Kxh5 44. g4+ (44. Bxg5 Kg6 $16) (44. fxg5 Re1 $11) 44... Kh6 45. Bxg5+ Kh7) 43. Rg8+ {[%emt 0:01:03]} Kf7 {[%emt 0:00:37]} 44. Rg7+ {[%emt 0:00:14]} Kf8 {[%emt 0:00:36]} 45. Rh7 {[%emt 0:02:10]} Kg8 {[%emt 0:01:55]} 46. Rh8+ {[%emt 0:00:03]} Kf7 {[%emt 0:00:04]} 47. Kg4 {[%emt 0:01:41] Against h5+. White is clearly winning.} Rxf6 {[%emt 0:05:00]} 48. gxf6 {[%emt 0:00:11]} Kxf6 {[%emt 0:00:02] KR-KR} 49. Rc8 {[%emt 0:03:19]} h5+ {[%emt 0:03:15]} 50. Kf3 {[%emt 0:00:04]} Rxb2 {[%emt 0:00:05]} 51. Rxc6+ {[%emt 0:00:06]} Kg7 {[%emt 0:00:12]} 52. Rb6 {[%emt 0:00:37]} Rxa2 {[%emt 0:01:36]} (52... Kf7 $142 53. Ke4 Rg2 54. Rxb4 Rxg3 55. Rb7+ Kf6 56. Rb6+ Kf7) 53. Rxb4 {[%emt 0:00:03]} Ra3+ {[%emt 0:00:06]} 54. Kg2 {[%emt 0:00:15]} Kf6 {[%emt 0:00:06]} 55. Rb5 {[%emt 0:00:15]} Kg6 {[%emt 0:00:06]} 56. Rb6+ {[%emt 0:00:47]} Kg7 {[%emt 0:00:21]} 57. Kh3 {[%emt 0:00:26] Weighted Error Value: White=0.18 (very precise) /Black=0.43} 1-0

[Event "II Llinars Open 2022"]
[Site "Llinars del Valles"]
[Date "2022.06.27"]
[Round "3.5"]
[White "Juan Lepp, Jaime Boris"]
[Black "Luna Cortes, Luis"]
[Result "0-1"]
[ECO "A43"]
[WhiteElo "1921"]
[BlackElo "2215"]
[Annotator "RC"]
[PlyCount "56"]
[EventDate "2022.06.24"]
[EventType "swiss"]
[EventCountry "ESP"]
[SourceTitle "playchess.com"]
[Source "ChessBase"]
[SourceQuality "1"]
[TimeControl "5400+30"]

1. e4 {[%emt 0:00:01]} c5 {[%emt 0:35:56]} 2. d4 {[%emt 0:00:18]} d6 {[%emt 0:02:56]} 3. dxc5 {[%emt 0:00:55]} Qa5+ {[%emt 0:02:45]} 4. Nc3 {[%emt 0:01:30]} Qxc5 {[%emt 0:00:09]} 5. Be3 {[%emt 0:01:27]} Qb4 {[%emt 0:00:21]} 6. Qd2 {[%emt 0:05:12]} e6 {[%emt 0:01:05]} 7. O-O-O {[%emt 0:00:44]} a6 {[%emt 0:04:45]} 8. Nf3 {[%emt 0:06:27]} Nc6 {[%emt 0:01:53]} 9. Kb1 {[%emt 0:12:24]} Be7 {[%emt 0:01:14]} 10. Bf4 {[%emt 0:05:49]} e5 {[%emt 0:02:34]} 11. Bg5 {[%emt 0:03:33]} f6 {[%emt 0:09:03]} 12. Be3 {[%emt 0:02:45]} Be6 {[%emt 0:00:15]} 13. Be2 {[%emt 0:05:46]} g6 {[%emt 0:07:42]} 14. h4 {[%emt 0:03:09]} h5 {[%emt 0:01:10]} 15. Nh2 {[%emt 0:02:50]} O-O-O {[%emt 0:00:24]} 16. Qd3 {[%emt 0:03:33]} f5 {[%emt 0:01:59]} 17. a3 {[%emt 0:08:56]} fxe4 {[%emt 0:03:52]} 18. Nxe4 {[%emt 0:02:13]} Qa5 {[%emt 0:00:42]} 19. Ng5 {[%emt 0:01:05]} Bxg5 {[%emt 0:08:52]} 20. Bxg5 {[%emt 0:01:56]} Nge7 {[%emt 0:00:10]} 21. Bf3 {[%emt 0:08:47]} d5 {[%emt 0:00:44]} 22. Bxe7 {[%emt 0:01:33]} Nxe7 {[%emt 0:00:07]} 23. Qe3 {[%emt 0:01:16]} Nc6 {[%emt 0:01:55]} 24. Qg5 {[%emt 0:04:51]} Bf7 {[%emt 0:00:16]} 25. g4 {[%emt 0:01:22]} Qc7 {[%emt 0:01:23]} 26. c3 {[%emt 0:04:27]} Kb8 {[%emt 0:00:50]} 27. Rhe1 {[%emt 0:01:09]} e4 {[%emt 0:00:22]} 28. gxh5 {[%emt 0:01:56]} gxh5 {[%emt 0:00:48]} 0-1

[Event "II Llinars Open 2022"]
[Site "Llinars del Valles"]
[Date "2022.06.27"]
[Round "3.6"]
[White "Prats Safont, Sergi"]
[Black "Uber Gracia, Hugo"]
[Result "1/2-1/2"]
[ECO "B11"]
[WhiteElo "2206"]
[BlackElo "1915"]
[Annotator "RC"]
[PlyCount "50"]
[EventDate "2022.06.24"]
[EventType "swiss"]
[EventCountry "ESP"]
[SourceTitle "playchess.com"]
[Source "ChessBase"]
[SourceQuality "1"]
[TimeControl "5400+30"]

1. e4 {[%emt 0:00:35]} c6 {[%emt 0:00:33]} 2. Nc3 {[%emt 0:00:36]} d5 {[%emt 0:00:29]} 3. Nf3 {[%emt 0:00:05]} dxe4 {[%emt 0:00:33]} 4. Nxe4 {[%emt 0:00:07]} Nf6 {[%emt 0:00:32]} 5. Qe2 {[%emt 0:00:37]} Nxe4 {[%emt 0:00:21]} 6. Qxe4 {[%emt 0:00:07]} Qa5 {[%emt 0:00:26]} 7. b4 {[%emt 0:13:44]} Qf5 {[%emt 0:07:29]} 8. Bd3 {[%emt 0:04:50]} Qxe4+ {[%emt 0:09:30]} 9. Bxe4 {[%emt 0:00:07]} f6 {[%emt 0:01:23]} 10. c3 {[%emt 0:17:45]} Be6 {[%emt 0:07:43]} 11. O-O {[%emt 0:06:03]} Bd5 {[%emt 0:05:13]} 12. Bc2 {[%emt 0:03:10]} Bxf3 {[%emt 0:07:07]} 13. gxf3 {[%emt 0:00:07]} e5 {[%emt 0:01:48]} 14. Re1 {[%emt 0:04:18]} Nd7 {[%emt 0:03:44]} 15. f4 {[%emt 0:01:33]} O-O-O {[%emt 0:01:25]} 16. f5 {[%emt 0:06:06]} g5 {[%emt 0:07:17]} 17. Be4 {[%emt 0:10:10]} Nb6 {[%emt 0:07:30]} 18. Rb1 {[%emt 0:04:21]} Nd5 {[%emt 0:03:42]} 19. b5 {[%emt 0:01:55]} c5 {[%emt 0:01:32]} 20. Bb2 {[%emt 0:09:40]} c4 {[%emt 0:06:00]} 21. Bxd5 {[%emt 0:04:04]} Rxd5 {[%emt 0:00:24]} 22. a4 {[%emt 0:01:14]} Rxd2 {[%emt 0:02:38]} 23. Re4 {[%emt 0:00:04]} b6 {[%emt 0:02:29]} 24. Rxc4+ {[%emt 0:00:07]} Kb7 {[%emt 0:00:26]} 25. Rc6 {[%emt 0:00:54]} Bc5 {[%emt 0:03:22]} 1/2-1/2

[Event "II Llinars Open 2022"]
[Site "Llinars del Valles"]
[Date "2022.06.27"]
[Round "3.7"]
[White "Segura Marsa, Andres"]
[Black "Fanninger, Leon"]
[Result "1/2-1/2"]
[ECO "B07"]
[WhiteElo "1862"]
[BlackElo "2157"]
[Annotator "RC"]
[PlyCount "69"]
[EventDate "2022.06.24"]
[EventType "swiss"]
[EventCountry "ESP"]
[SourceTitle "playchess.com"]
[Source "ChessBase"]
[SourceQuality "1"]
[TimeControl "5400+30"]

1. e4 {[%emt 0:00:03]} d6 {[%emt 0:09:57]} 2. d4 {[%emt 0:00:34]} Nf6 {[%emt 0:00:05]} 3. Bd3 {[%emt 0:00:33]} g6 {[%emt 0:00:38]} 4. Nf3 {[%emt 0:00:47]} Bg7 {[%emt 0:00:09]} 5. c3 {[%emt 0:00:27]} O-O {[%emt 0:00:11]} 6. O-O {[%emt 0:00:28]} Nbd7 {[%emt 0:01:42]} 7. Re1 {[%emt 0:01:24]} e5 {[%emt 0:00:08]} 8. h3 {[%emt 0:00:51]} c6 {[%emt 0:09:07]} 9. Nbd2 {[%emt 0:10:30]} Qc7 {[%emt 0:00:11]} 10. dxe5 {[%emt 0:04:06]} dxe5 {[%emt 0:17:05]} 11. a4 {[%emt 0:06:39]} Nc5 {[%emt 0:11:07]} 12. Bf1 {[%emt 0:07:47]} a5 {[%emt 0:00:29]} 13. b4 {[%emt 0:02:34]} axb4 {[%emt 0:13:03]} 14. cxb4 {[%emt 0:00:17]} Ne6 {[%emt 0:00:07]} 15. Bb2 {[%emt 0:06:33]} Nd7 {[%emt 0:00:09]} 16. Nc4 {[%emt 0:03:48]} Rd8 {[%emt 0:01:08]} 17. Qb3 {[%emt 0:04:34]} c5 {[%emt 0:03:20]} 18. Ne3 {[%emt 0:10:38]} Nd4 {[%emt 0:02:05]} 19. Nxd4 {[%emt 0:00:47]} exd4 {[%emt 0:00:51]} 20. Nd5 {[%emt 0:03:22]} Qd6 {[%emt 0:00:01]} 21. Bc4 {[%emt 0:06:04]} cxb4 {[%emt 0:03:09]} 22. Nxb4 {[%emt 0:06:54]} Nc5 {[%emt 0:00:01]} 23. Bxf7+ {[%emt 0:02:28]} Kh8 {[%emt 0:00:01]} 24. Qc4 {[%emt 0:04:48]} Nxa4 {[%emt 0:00:17]} 25. Ba3 {[%emt 0:04:43]} Nc3 {[%emt 0:06:53]} 26. Nc2 {[%emt 0:02:19]} Qc6 {[%emt 0:02:02]} 27. Qxc6 {[%emt 0:02:51]} bxc6 {[%emt 0:00:01]} 28. Be7 {[%emt 0:00:03]} Rxa1 {[%emt 0:00:12]} 29. Rxa1 {[%emt 0:00:02]} Rd7 {[%emt 0:00:11]} 30. Ra8 {[%emt 0:00:40]} Rxe7 {[%emt 0:02:12]} 31. Rxc8+ {[%emt 0:00:02]} Bf8 {[%emt 0:00:01]} 32. Rxf8+ {[%emt 0:01:57]} Kg7 {[%emt 0:00:01]} 33. Rc8 {[%emt 0:00:07]} d3 {[%emt 0:09:52]} 34. Bb3 {[%emt 0:00:02]} Rb7 {[%emt 0:00:02]} 35. Rd8 {[%emt 0:00:33]} 1/2-1/2

[Event "II Llinars Open 2022"]
[Site "Llinars del Valles"]
[Date "2022.06.27"]
[Round "3.8"]
[White "Herman Gamazo, Isaac"]
[Black "Sanchez Aguilar, Arnau"]
[Result "1-0"]
[ECO "B90"]
[WhiteElo "1823"]
[BlackElo "2028"]
[Annotator "NA RC"]
[PlyCount "117"]
[EventDate "2022.06.24"]
[EventType "swiss"]
[EventCountry "ESP"]
[SourceTitle "playchess.com"]
[Source "ChessBase"]
[SourceQuality "1"]
[TimeControl "5400+30"]

1. e4 {[%emt 0:00:07]} c5 {[%emt 0:00:43]} 2. Nf3 {[%emt 0:00:17]} d6 {[%emt 0:00:46]} 3. d4 {[%emt 0:01:07]} cxd4 {[%emt 0:00:46]} 4. Nxd4 {[%emt 0:00:15]} Nf6 {[%emt 0:00:35]} 5. Nc3 {[%emt 0:00:34]} a6 {[%emt 0:00:56]} 6. f3 {[%emt 0:00:53]} e5 {[%emt 0:01:43]} 7. Nb3 {[%emt 0:01:22]} h5 {[%emt 0:00:52]} 8. Be3 {[%emt 0:00:07]} Be6 {[%emt 0:01:32]} 9. Nd5 {[%emt 0:00:25]} Nxd5 {[%emt 0:02:52]} 10. exd5 {[%emt 0:00:29]} Bf5 {[%emt 0:00:40]} 11. Bd3 {[%emt 0:02:18]} e4 {[%emt 0:01:59]} 12. fxe4 {[%emt 0:05:14]} Bxe4 {[%emt 0:00:09]} 13. O-O {[%emt 0:00:15]} Bxd5 {[%emt 0:03:27]} 14. c4 {[%emt 0:00:08]} Bc6 {[%emt 0:03:00]} 15. Re1 {[%emt 0:05:36]} Kd7 {[%emt 0:09:24]} 16. Bf5+ {[%emt 0:14:32]} Kc7 {[%emt 0:00:05]} 17. Nd4 {[%emt 0:15:44]} Nd7 {[%emt 0:08:04]} 18. b4 {[%emt 0:01:46]} g6 {[%emt 0:07:30]} 19. Bxg6 {[%emt 0:04:57]} Bxg2 {[%emt 0:00:32]} 20. Bxf7 {[%emt 0:00:26]} Bh3 {[%emt 0:00:02]} 21. Be6 {[%emt 0:00:23]} Qh4 {[%emt 0:01:30]} 22. Qd2 {[%emt 0:01:55]} Ne5 {[%emt 0:06:49]} 23. Bf2 {[%emt 0:10:40]} Bh6 {[%emt 0:06:04]} 24. Bxh4 {[%emt 0:01:46]} Bxd2 {[%emt 0:00:21]} 25. Bxh3 {[%emt 0:02:02]} Bxe1 {[%emt 0:00:44]} 26. Rxe1 {[%emt 0:00:09]} Nxc4 {[%emt 0:01:27]} 27. Ne6+ {[%emt 0:02:36]} Kb8 {[%emt 0:01:33]} 28. Bf1 {[%emt 0:02:28]} Ne5 {[%emt 0:00:20]} 29. Bg2 {[%emt 0:01:44]} Re8 {[%emt 0:01:42]} 30. Rf1 {[%emt 0:01:28]} Ng6 {[%emt 0:00:47]} 31. Ng7 {[%emt 0:00:36]} Rg8 {[%emt 0:00:44]} 32. Bf6 {[%emt 0:00:34]} Kc7 {[%emt 0:01:04]} 33. Rc1+ {[%emt 0:03:49]} Kb6 {[%emt 0:00:15]} 34. a4 {[%emt 0:00:13]} Ne5 {[%emt 0:00:16]} 35. Rd1 {[%emt 0:00:42]} Kc7 {[%emt 0:01:09]} 36. Ne6+ {[%emt 0:05:13]} Kd7 {[%emt 0:01:31]} 37. Nc5+ {[%emt 0:00:11]} Kc7 {[%emt 0:00:17]} 38. Bxe5 {[%emt 0:01:56]} dxe5 {[%emt 0:00:08]} 39. Rd7+ {[%emt 0:00:17]} Kc8 {[%emt 0:00:34]} 40. Kf2 {[%emt 0:00:17]} b6 {[%emt 0:01:31]} 41. Bb7+ {[%emt 0:00:37]} Kb8 {[%emt 0:00:05]} 42. Nxa6+ {[%emt 0:00:10]} Rxa6 {[%emt 0:00:04]} 43. Bxa6 {[%emt 0:00:10]} Rg4 {[%emt 0:00:04]} 44. Rb7+ {[%emt 0:05:13]} Ka8 {[%emt 0:00:05]} 45. Rxb6 {[%emt 0:00:21]} Ka7 {[%emt 0:00:06]} 46. a5 {[%emt 0:00:14]} h4 {[%emt 0:00:20]} 47. Bf1 {[%emt 0:00:34]} Rf4+ {[%emt 0:00:29]} 48. Ke2 {[%emt 0:03:05]} h3 {[%emt 0:00:54]} 49. b5 {[%emt 0:01:50]} Ra4 {[%emt 0:00:23]} 50. Ra6+ {[%emt 0:00:22]} Kb7 {[%emt 0:00:34]} 51. Bxh3 {[%emt 0:00:59]} Ra2+ {[%emt 0:00:12]} 52. Kf1 {[%emt 0:00:10]} Rxh2 {[%emt 0:00:11]} 53. Bg2+ {[%emt 0:00:08]} e4 {[%emt 0:00:01]} 54. Bxe4+ {[%emt 0:00:14]} Kb8 {[%emt 0:01:25]} 55. Ra8+ {[%emt 0:00:05]} Kc7 {[%emt 0:00:04]} 56. b6+ {[%emt 0:00:07]} Kd7 {[%emt 0:00:56]} 57. b7 {[%emt 0:00:09]} Rb2 {[%emt 0:00:45]} 58. b8=Q {[%emt 0:00:09]} Rb6 {[%emt 0:00:08]} 59. Ra7+ {[%emt 0:00:29]} 1-0